[Event "17th Memorial Lezcano Montalvo 2025"]
[Site "Gran Canaria"]
[Date "2025.04.12"]
[Round "1.56"]
[White "Ramirez Maillo, Juan Adonay"]
[Black "Parra Erazo, Santiago"]
[Result "1-0"]
[Annotator "RC"]
[ECO "C02"]
[WhiteElo "1956"]
[BlackElo "1473"]
[PlyCount "71"]
[EventDate "2025.04.13"]
[EventType "swiss"]
[EventCountry "ESP"]
[SourceTitle "playchess.com"]
[Source "ChessBase"]
[SourceQuality "1"]
[TimeControl "5400+30"]

1. e4 {[%emt 0:00:04]} e6 {[%emt 0:00:10]} 2. d4 {[%emt 0:00:11]} d5 {[%emt 0:00:03]} 3. e5 {[%emt 0:00:10]} c5 {[%emt 0:00:05]} 4. c3 {[%emt 0:00:09]} Nc6 {[%emt 0:00:04]} 5. Nf3 {[%emt 0:00:06]} Qb6 {[%emt 0:00:11]} 6. Bd3 {[%emt 0:00:36]} Bd7 {[%emt 0:00:09]} 7. O-O {[%emt 0:00:46]} cxd4 {[%emt 0:01:41]} 8. Re1 {[%emt 0:01:00]} Nh6 {[%emt 0:00:57]} 9. Nbd2 {[%emt 0:03:09]} Nf5 {[%emt 0:05:12]} 10. g4 {[%emt 0:04:33]} Nh6 {[%emt 0:00:24]} 11. h3 {[%emt 0:00:36]} Be7 {[%emt 0:05:16]} 12. Nb3 {[%emt 0:02:42]} dxc3 {[%emt 0:00:54]} 13. bxc3 {[%emt 0:00:11]} Na5 {[%emt 0:03:46]} 14. Nbd4 {[%emt 0:04:00]} Bc6 {[%emt 0:01:52]} 15. g5 {[%emt 0:05:29]} Ng8 {[%emt 0:01:41]} 16. Be3 {[%emt 0:00:55]} Nc4 {[%emt 1:16:05]} 17. Bxc4 {[%emt 0:02:17]} dxc4 {[%emt 0:00:00]} 18. Nxe6 {[%emt 0:00:39]} Qa5 {[%emt 0:00:00]} 19. Nxg7+ {[%emt 0:00:31]} Kf8 {[%emt 0:00:00]} 20. Nf5 {[%emt 0:00:37]} Rd8 {[%emt 0:00:00]} 21. Qe2 {[%emt 0:01:32]} Qxc3 {[%emt 0:00:00]} 22. Rad1 {[%emt 0:04:37]} Rxd1 {[%emt 0:00:00]} 23. Rxd1 {[%emt 0:00:14]} Bxf3 {[%emt 0:00:00]} 24. Qxf3 {[%emt 0:00:52]} h6 {[%emt 0:00:00]} 25. Rd8+ {[%emt 0:01:55]} Bxd8 {[%emt 0:00:00]} 26. Bc5+ {[%emt 0:00:07]} Be7 {[%emt 0:00:00]} 27. Qxc3 {[%emt 0:00:42]} Bxc5 {[%emt 0:00:00]} 28. Qxc4 {[%emt 0:01:06]} Bxf2+ {[%emt 0:00:00]} 29. Kxf2 {[%emt 0:00:07]} Ne7 {[%emt 0:00:00]} 30. Qc5 {[%emt 0:00:11]} Kg8 {[%emt 0:00:00]} 31. Nxe7+ {[%emt 0:00:06]} Kh7 {[%emt 0:00:00]} 32. g6+ {[%emt 0:00:35]} fxg6 {[%emt 0:00:00]} 33. Qc7 {[%emt 0:00:13]} Rf8+ {[%emt 0:00:00]} 34. Nf5+ {[%emt 0:00:13]} Rf7 {[%emt 0:00:00]} 35. Qxf7+ {[%emt 0:00:06]} Kh8 {[%emt 0:00:00]} 36. Qg7# {[%emt 0:00:39]} 1-0